Cogmind - Beta 12 X1 @@@ ROGUE MODE // 2022.07.11 @ 15:47:52 Player: youngster Result: Destroyed by D-53 Grenadier with Mini Grenade Launcher Performance ------------- Evolutions (0) 0 Regions Visited (2) 400 Robots Destroyed (26) 130 Value Destroyed (433) 433 Prototype IDs (4) 80 Alien Tech Used (0) 0 Bonus (0) 0 TOTAL SCORE: 1043 Bonus ------- None Cogmind --------- Core Integrity 0/250 Matter 300/300 Energy 19/100 System Corruption 4% Temperature Cool (0) Movement Core (400) Ox7 Location -10/Mines Parts ------- > --- POWER (1) -------- (None) > --- PROPULSION (2) --- (None) > --- UTILITY (2) ------ Large Storage Unit Sensor Array > --- WEAPON (2) ------- Heavy Assault Rifle > --- INVENTORY (15) --- Ion Engine Compact Wheel Huge Storage Unit High-capacity Matter Pod (200) High-powered Tractor Beam EM Pulse Gun Heavy Assault Rifle Heavy Assault Rifle Shotgun Shotgun Grenade Launcher Grenade Launcher Rocket Launcher Peak State ------------ > --- POWER ------------ Light Ion Engine > --- PROPULSION ------- Light Treads Light Treads > --- UTILITY ---------- Large Storage Unit Sensor Array > --- WEAPON ----------- Heavy Assault Rifle Heavy Assault Rifle > --- INVENTORY -------- Ion Engine Light Treads Light Treads Compact Wheel High-capacity Matter Pod High-powered Tractor Beam EM Pulse Gun Heavy Assault Rifle Heavy Assault Rifle Shotgun Shotgun Grenade Launcher Grenade Launcher Rocket Launcher [Rating: 11] Favorites ----------- Power Light Ion Engine Engine Light Ion Engine Propulsion Light Treads Treads Light Treads Utility Medium Storage Unit Device Sensor Array Storage Medium Storage Unit Weapon Shotgun Energy Gun EM Pulse Gun Ballistic Gun Shotgun Launcher Grenade Launcher Build | -11 -10 -10 ------- Run | Scr Mat Min Slots Evolved . | . . . Power . | . . . Propulsion . | . . . Utility . | . . . Weapon . | . . . Parts Attached 22 | 6 12 4 Power 2 | 1 1 . Engine 2 | 1 1 . Core . | . . . Reactor . | . . . Propulsion 5 | 2 1 2 Treads 5 | 2 1 2 Leg . | . . . Wheel . | . . . Hover . | . . . Flight . | . . . Utility 4 | 1 3 . Device 1 | . 1 . Storage 3 | 1 2 . Processor . | . . . Hackware . | . . . Protection . | . . . Artifact . | . . . Weapon 11 | 2 7 2 Energy Gun 2 | 1 1 . Energy Cannon . | . . . Ballistic Gun 7 | 1 5 1 Ballistic Cannon . | . . . Launcher 2 | . 1 1 Special Weapon . | . . . Impact Weapon . | . . . Slashing Weapon . | . . . Piercing Weapon . | . . . Special Melee Weapon . | . . . Unidentified Prototypes . | . . . Corrupted Parts 1 | . . 1 System Corruption 2 | . . 2 Parts Lost 7 | . 1 6 Power 2 | . 1 1 Propulsion 4 | . . 4 Utility . | . . . Weapon 1 | . . 1 Highest Loss Streak 6 | . 1 6 To Critical Strikes . | . . . Average Slot Usage (%) 84 | . 82 97 Engine 11 | . 10 13 Treads 27 | . 28 27 Device 1 | . . 14 Storage 14 | . 14 14 Energy Gun 1 | . 1 . Ballistic Gun 26 | . 26 26 Naked Turns . | . . . Heaviest Build 30 | 11 30 30 Greatest Support 40 | 40 40 40 Greatest Overweight (x) 1 | . . 1 Average Overweight (x) . | . . . Largest Inventory Capacity 15 | 8 15 15 Average Capacity 11 | 6 11 15 Most Carried 15 | 3 13 15 Average Carried 10 | 2 9 13 Final Capacity 15 | 8 15 15 Final Carried 13 | 3 13 13 Class Distribution -------------------- 100% | Mutant Dominant Class ---------------- Mutant | -10/Materials Mutant | -10/Mines Resources | -11 -10 -10 ----------- Run | Scr Mat Min Matter Collected 954 | 228 664 62 Remotely . | . . . Salvage Created 742 | . 663 79 Parts 54 | . 50 4 Haulers Intercepted 2 | . 2 . Recyclers Shooed . | . . . Parts Field Recycled . | . . . Retrieved Matter . | . . . Parts Self-Destructed . | . . . Prevented . | . . . Kills | -11 -10 -10 ------- Run | Scr Mat Min Combat Hostiles Destroyed 16 | . 14 2 Guns 12 | . 11 1 AOE 4 | . 3 1 Classes Destroyed 6 | . 6 . Worker 2 | . 2 . Hauler 2 | . 2 . Recycler 3 | . 3 . Watcher 3 | . 3 . Swarmer 9 | . 9 . Grunt 7 | . 5 2 Best Kill Streak 6 | . 6 2 Combat Bots Only 3 | . 3 2 Max Kills in Single Turn 3 | . 3 1 Gunslinging 1 | . 1 . Exploded 2 | . 2 1 Melee . | . . . Uniques/NPCs Destroyed . | . . . Combat | -11 -10 -10 -------- Run | Scr Mat Min Damage Taken 1283 | . 337 946 Core 279 | . 47 232 Absorbed by Shields . | . . . Core Remaining (%) 100 | 100 . . Volleys Fired 52 | . 48 4 Largest 2 | . 2 2 Hottest 60 | . 60 46 Shots Fired 101 | . 94 7 Gun 96 | . 90 6 Cannon . | . . . Launcher 5 | . 4 1 Special . | . . . Kinetic 79 | . 73 6 Thermal 9 | . 9 . Explosive 5 | . 4 1 Electromagnetic 8 | . 8 . Robot Hit Streak 19 | . 19 4 Robot Miss Streak 5 | . 5 2 Penetration Max . | . . . Secondary Targets 1 | . 1 . Max Gunslinging Chain 1 | . 1 . Shots Hit Robots 68 | . 65 3 Core Hits 45 | . 41 4 Critical Kills . | . . . Critical Parts Destroyed 1 | . 1 . Critical Strikes 1 | . 1 . Destroy 1 | . 1 . Melee Attacks . | . . . Impact . | . . . Slashing . | . . . Piercing . | . . . Sneak Attacks . | . . . Combat Hostiles . | . . . Follow-up Attacks . | . . . Damage Inflicted 1284 | . 1174 110 Guns 990 | . 947 43 Cannons . | . . . Explosions 279 | . 212 67 Melee . | . . . Ramming 15 | . 15 . Kinetic 878 | . 835 43 Thermal 60 | . 60 . Explosive 279 | . 212 67 Electromagnetic 52 | . 52 . Impact . | . . . Slashing . | . . . Piercing . | . . . Highest Corruption 4 | . 2 4 Average Corruption 2 | . 2 2 Corruption Purged . | . . . Corruption Blocked . | . . . Effects 14 | . 12 2 Message Errors 5 | . 3 2 Matter Fused 4 | . 4 . Heat Flow Errors 1 | . 1 . Energy Discharges 2 | . 2 . Misfires 2 | . 2 . Overload Shots . | . . . Overflow Damage . | . . . Projectiles . | . . . Explosions . | . . . Melee . | . . . Knockbacks . | . . . Impact . | . . . Kinetic . | . . . Secondary . | . . . Self-Inflicted Damage . | . . . Shots . | . . . Rammed 3 | . 3 . Targets Rammed 3 | . 3 . Kicked . | . . . Crushed . | . . . Highest Temperature 255 | . 255 4 Average Temperature 47 | . 49 4 Received Heat Transfer 72 | . 48 24 Siege Activations . | . . . Robots Corrupted . | . . . Combat Hostiles . | . . . Parts Fried . | . . . Impact Corruptions . | . . . Robots Melted . | . . . Combat Hostiles . | . . . Parts Melted . | . . . Heat Transferred 125 | . 125 . Parts Sabotaged . | . . . Parts Stolen . | . . . Parts Stripped . | . . . Power Chain Reactions . | . . . Missiles Intercepted . | . . . Alert | -11 -10 -10 ------- Run | Scr Mat Min Peak Influence 245 | . 245 142 Initial 68 | . . 68 Average 82 | . 80 137 Maximum Alert Level 1 | . 1 . Low Security (%) 87 | 100 86 100 Level 1 12 | . 13 . Level 2 . | . . . Level 3 . | . . . Level 4 . | . . . Level 5 . | . . . High Security . | . . . Max Security . | . . . Squads Dispatched 5 | . 5 . Investigation 2 | . 2 . Extermination . | . . . Reinforcement 3 | . 3 . Assault . | . . . Garrison . | . . . Intercept . | . . . Searches Triggered . | . . . Construction Impeded . | . . . Haulers Reinforced . | . . . Active Scanning Responses . | . . . Cargo Convoy Interrupts . | . . . Stealth | -11 -10 -10 --------- Run | Scr Mat Min Distress Signals 2 | . 1 1 Communications Jammed . | . . . Distress Signals . | . . . Times Spotted 24 | . 19 5 Peak Tracking Total 6 | . 6 3 Tactical Retreats . | . . . Traps | -11 -10 -10 ------- Run | Scr Mat Min Traps Triggered 1 | . 1 . Indirectly . | . . . Trap Hack Attempts . | . . . Triggered . | . . . Disarmed . | . . . Reprogrammed . | . . . Reused . | . . . Traps Extracted . | . . . Installed . | . . . Triggered . | . . . Machines | -11 -10 -10 ---------- Run | Scr Mat Min Machines Disabled 2 | . 2 . Max in Single Turn 1 | . 1 . Machines Sabotaged . | . . . Garrisons Compromised . | . . . Overloaded Fab Kills . | . . . Hacking | -11 -10 -10 --------- Run | Scr Mat Min Machines Accessed 6 | . 6 . Terminals 4 | . 4 . Fabricators . | . . . Repair Stations . | . . . Recycling Units 2 | . 2 . Scanalyzers . | . . . Garrison Access . | . . . Total Hacks 22 | . 22 . Successful 9 | . 9 . Failed 12 | . 12 . Catastrophic . | . . . Database Lockouts 1 | . 1 . Manual 20 | . 20 . Terminals 20 | . 20 . Fabricators . | . . . Repair Stations . | . . . Recycling Units 2 | . 2 . Scanalyzers . | . . . Garrison Access . | . . . Terminal Hacks 7 | . 7 . Part Schematic 1 | . 1 . Robot Analysis 4 | . 4 . Prototype ID Bank 2 | . 2 . Fabricator Hacks . | . . . Repair Station Hacks . | . . . Recycling Unit Hacks . | . . . Scanalyzer . | . . . Garrison Access Hacks . | . . . Unauthorized Hacks 2 | . 2 . Terminals . | . . . Fabricators . | . . . Repair Stations . | . . . Recycling Units 2 | . 2 . Tunnel 2 | . 2 . Scanalyzers . | . . . Garrison Access . | . . . Data Cores Recovered . | . . . Used . | . . . Hacking Detections 4 | . 4 . Full Trace Events 3 | . 3 . Feedback Events . | . . . Feedback Blocked . | . . . Robot Schematics Acquired . | . . . Robots Built . | . . . Authchips . | . . . Time . | . . . Total Robot Build Rating . | . . . Part Schematics Acquired 1 | . 1 . Parts Built . | . . . Authchips . | . . . Time . | . . . Total Part Build Rating . | . . . Parts Repaired . | . . . Time . | . . . Parts Recycled . | . . . Recycled Matter . | . . . Retrieved Matter . | . . . Retrieved Components . | . . . Parts Scanalyzed . | . . . Part Schematics Acquired . | . . . Parts Damaged . | . . . Bothacking | -11 -10 -10 ------------ Run | Scr Mat Min Used RIF Installer . | . . . Robots Hacked . | . . . Non-combat . | . . . Combat . | . . . Robot Hacks Applied . | . . . Relay Couplers Released . | . . . Fabnet Peak Effective % . | . . . Robots Rewired . | . . . Allies Hacked . | . . . Hacks Repelled . | . . . Allies | -11 -10 -10 -------- Run | Scr Mat Min Total Allies . | . . . Largest Group . | . . . Highest-Rated Group . | . . . Highest-Rated Ally . | . . . Total Orders . | . . . Ally Attacks . | . . . Total Damage . | . . . Kills . | . . . Allies Corrupted . | . . . Allies Melted . | . . . Intel | -11 -10 -10 ------- Run | Scr Mat Min Robot Analysis Total 4 | . 4 . Derelict Logs Recovered . | . . . Drone Launches . | . . . Drone Recoveries . | . . . Exploration | -11 -10 -10 ------------- Run | Scr Mat Min Turns Passed 2312 | 67 2069 176 Spaces Moved 1206 | 36 1076 94 Core 1 | 1 . . Treads 1205 | 35 1076 94 Legs . | . . . Wheels . | . . . Hover . | . . . Flight . | . . . Fastest Speed 50 | 50 160 160 Average Speed 159 | 156 160 160 Slowest Speed 240 | 160 160 240 Overloaded Moves . | . . . Propulsion Burnouts . | . . . Robots Hopped . | . . . Cave-ins Triggered . | . . . Exploration Rate (%) 39 | 3 90 26 Regions Visited 2 Branch Regions 1 Pre-discovered Areas 2 | . 2 . Known Exits Taken . | . . . Unknown Exits Taken 2 | 1 1 . Scrap Searched . | . . . Spaces Dug 25 | . 17 8 Terrain Destroyed 35 | . 27 8 Melee . | . . . Projectile . | . . . AOE 35 | . 27 8 Terrain Rammed . | . . . Walls Destroyed . | . . . Machines Disabled . | . . . Actions | -11 -10 -10 --------- Run | Scr Mat Min Total 1488 | 44 1333 111 Wait 183 | . 176 7 Move 1204 | 35 1075 94 Hop . | . . . Pick Up 17 | 3 12 2 Fast Attach 11 | 6 5 . Attach 3 | . 1 2 Detach 1 | . 1 . Swap 8 | . 6 2 Drop 6 | . 6 . Fire 52 | . 48 4 Melee . | . . . Ram . | . . . Kick . | . . . Crush 3 | . 3 . Escape Stasis . | . . . Rewire . | . . . Trap . | . . . Miscellaneous . | . . . Route ------- -11/Scrapyard -10/Materials (discovered 4 exits: [*Mat x2] / [*Min x2]) -10/Mines (discovered 1 exit: [*Mat]) History --------- Turn | Location | Event 41 | -11/Scrapyard | Discovered new exit (range 16) 68 | -11/Scrapyard | Entered Materials 329 | -10/Materials | Build established: Mutant 358 | -10/Materials | Discovered new exit (range 9) 388 | -10/Materials | Discovered new exit (range 8) 1206 | -10/Materials | Discovered new exit (range 8) 1429 | -10/Materials | Central database locked down 1824 | -10/Materials | Discovered new exit (range 13) 2137 | -10/Materials | Entered Mines 2181 | -10/Mines | Received a Rocket Launcher from a helpful Derelict 2225 | -10/Mines | Discovered new exit (range 11) 2275 | -10/Mines | Assembled infested the area 2310 | -10/Mines | Core integrity fell below 50% 2313 | -10/Mines | Destroyed by D-53 Grenadier with Mini Grenade Launcher Last Messages --------------- 02295_ C-30 ARC bursts open, deploying its payload. 02295_ D-53 Grenadier unfolds itself. 02299_ Lgt. Treads destroyed. 02304_ C 02307_ Hvy. Assault Rifle destroyed. 02307_ Lgt. Ion Engine destroyed. 02307_ Lgt. Treads destroyed. 02308_ U-05 Engineer lays Concrete. 02308_ Integrated Corrupted Lgt. Treads (+2). 02308_ Complication: Energy sink damages Corrupted Lgt. Treads (-32). 02309_ U-05 Engineer lays Concrete. 02309_ Lgt. Treads destroyed. 02310_ The unstable cave ceiling collapses. 02310_ U-05 Engineer lays Concrete. 02311_ U-05 Engineer builds a Wall. 02311_ A-02 Transporter destroyed. 02311_ Lgt. Treads destroyed. 02311_ U-05 Engineer destroyed. 02313_ The unstable cave ceiling collapses. Map ----- +----------------------------------------------------+ | | | | | | | | | | | | | | | | | | | ???????????????????????????????????? | | ???????????????????????????????????? | | ???????????????????????????????????? | | ???????????????????????????????????? | | ???????????????????????????????????? | | ??????????????????????###??##??????? | | ?????????????????????## ## ##?????? | | ????????????????????## ##????? | | ??????????# ###### #????? | | ?????????# a #????? | | ???????????????##### # #????? | | ???????????????????# #????? | | ????????????????????# #????? | | ???????????????????## #????? | | ???????????????????# #????? | | ???????????????????## #????? | | ????????????????????# @d #????? | | ????????????????????# d #????? | | ????????????????????# #????? | | ????????????????????# *%#####?? | | ????????????????????# ## a ! = #?? | | ??????????????????? ?## #?? | | ??????????????????###???### ## ##?? | | ??????????????????????????# ## ##??? | | ?????????????????????????? ## #???? | | ??????????????????????????#### #???? | | ?????????????????????????????# #???? | | ?????????????????????????????# #???? | | ?????????????????????????????# #???? | | ?????????????????????????????# #???? | | ??????????????????????######## ##??? | | ????????????????????# #??? | | ??????????????????????####### #??? | | ???????????????????????????## ##??? | | ???????????????????????????# #???? | | ???????????????????????????# #???? | | ???????????????????????????# #???? | | ???????????????????????????# ##??? | | ???????????????????????????## ##?? | | ??????????? ????????????????# ##? | | ???????? #??????????###?## < #? | +----------------------------------------------------+ Best States ------------- Heat Dissipation 25 Energy Generation 10 Energy Capacity 125 Matter Stores 300 Matter Capacity 300 Sight Range 16 Robot Scan Range 14 Terrain Scan Density 10 Evasion (%) 40 Recoil Reduction 2 Item Schematics ----------------- Huge Storage Unit | -10/Materials | Hacked Robot Schematics ------------------ None Fabricated ------------ Nothing Alien Tech Used ----------------- None Achievements -------------- None Challenges ------------ None Game ------ Seed ArchitectGammaBlade Manual? 0 Play Time 00:14:19 Cumulative 318.0 hours Start 2022.07.11 @ 15:35:14 End 2022.07.11 @ 15:47:52 Sessions 1 Manual Loads 0 Difficulty Rogue Special Mode None Game No. 145 Rogue 145 Adventurer 0 Explorer 0 Win Type - Total 8 Types 5/0/1/1/0/0/0/1/0 Lore% 88 Gallery% 91 Achievement% 70 Wizard Run 0 Options --------- ASCII 0 Keyboard 1 Movement Vi Keybinds 0 Fullscreen 2 Font 18/Cog Map View 76x50 Tactical HUD 1 Map Filters NONE Filters NONE Steam 0 RUN: c0e8a60b-4861-47aa-bfa4-dec80bab7f19